Cogmind - Beta 13 @@@ ROGUE MODE // 2024.04.02 @ 22:21:12 Player: opdo Result: Self-destructed Performance ------------- Evolutions (4) 2000 Regions Visited (7) 1400 Robots Destroyed (52) 260 Value Destroyed (2229) 2229 Prototype IDs (24) 480 Alien Tech Used (0) 0 Bonus (335) 335 TOTAL SCORE: 6704 Bonus ------- High Alert Combat Kills 35 Aligned with FarCom 300 Cogmind --------- Core Integrity 696/850 Matter 159/300 Energy 5/100 System Corruption 1% Temperature Cool (9) Movement Walking (190) Ox1 Location -6/Factory Parts ------- > --- POWER (2) -------- (None) > --- PROPULSION (3) --- Aluminum Leg Carbon-fiber Leg Flexi-carbon Leg > --- UTILITY (6) ------ Large Storage Unit Improved Terrain Scanner Advanced Terrain Scan Processor Hardened Medium Armor Plating Improved Light Armor Plating Recalibrator > --- WEAPON (4) ------- Pulse Rifle High-powered Shotgun Magnetic Acceleration Cannon > --- INVENTORY (15) --- Micro Nuclear Core Micro Nuclear Core Micro Nuclear Core Light Fission Core Aluminum Leg Aluminum Leg Carbon-fiber Leg Improved Trap Scanner Visual Processing Unit Improved Signal Interpreter Improved Terrain Scanner Weapon Cycler System Shield Peak State ------------ > --- POWER ------------ Nuclear Core Light Antimatter Reactor > --- PROPULSION ------- Aluminum Leg Carbon-fiber Leg Flexi-carbon Leg > --- UTILITY ---------- Large Storage Unit Improved Terrain Scanner Advanced Terrain Scan Processor Hardened Medium Armor Plating Improved Light Armor Plating Recalibrator > --- WEAPON ----------- High-powered Shotgun AWS/Gauss Magnetic Acceleration Cannon > --- INVENTORY -------- Micro Nuclear Core Micro Nuclear Core Micro Nuclear Core Aluminum Leg Aluminum Leg Carbon-fiber Leg Carbon-fiber Leg Improved Trap Scanner Visual Processing Unit Improved Signal Interpreter Improved Terrain Scanner Weapon Cycler System Shield Pulse Rifle [Rating: 65] Favorites ----------- Power Nuclear Core Engine Light Ion Engine Power Core Nuclear Core Reactor Light Antimatter Reactor Propulsion Aluminum Leg Leg Aluminum Leg Wheel Compact Wheel Utility Large Storage Unit Device Terrain Scanner Storage Large Storage Unit Processor Improved Terrain Scan Processor Protection Hardened Medium Armor Plating Weapon AWS/Gauss Energy Gun Pulse Rifle Ballistic Gun AWS/Gauss Ballistic Cannon Gauss Cannon Build | -11 -10 -10 -10 -9 -8 -7 -6 ------- Run | Yrd Mat Min Exi Min Mat Fac Fac Slots Evolved 8 | . . . . . 4 2 2 Power 1 | . . . . . . 1 . Propulsion 1 | . . . . . . 1 . Utility 4 | . . . . . 3 . 1 Weapon 2 | . . . . . 1 . 1 Parts Attached 59 | 6 2 3 5 . 14 4 25 Power 8 | 1 . . 1 . 2 . 4 Engine 2 | 1 . . 1 . . . . Core 5 | . . . . . 2 . 3 Reactor 1 | . . . . . . . 1 Propulsion 14 | 2 . 1 . . 2 1 8 Treads . | . . . . . . . . Leg 13 | 2 . 1 . . 2 1 7 Wheel 1 | . . . . . . . 1 Hover . | . . . . . . . . Flight . | . . . . . . . . Utility 23 | 1 2 1 3 . 8 1 7 Device 12 | . 1 1 2 . 3 . 5 Storage 3 | 1 1 . 1 . . . . Processor 3 | . . . . . 2 1 . Hackware . | . . . . . . . . Protection 5 | . . . . . 3 . 2 Artifact . | . . . . . . . . Weapon 14 | 2 . 1 1 . 2 2 6 Energy Gun 1 | . . . . . . . 1 Energy Cannon . | . . . . . . . . Ballistic Gun 9 | 2 . 1 1 . 2 1 2 Ballistic Cannon 4 | . . . . . . 1 3 Launcher . | . . . . . . . . Special Weapon . | . . . . . . . . Impact Weapon . | . . . . . . . . Slashing Weapon . | . . . . . . . . Piercing Weapon . | . . . . . . . . Special Melee Weapon . | . . . . . . . . Unidentified Prototypes 3 | . . . 2 . . 1 . Parts Lost 12 | . . 3 . . 1 . 8 Power 4 | . . 1 . . . . 3 Propulsion 2 | . . 1 . . . . 1 Utility 4 | . . 1 . . 1 . 2 Weapon 2 | . . . . . . . 2 Highest Loss Streak 3 | . . 3 . . 1 . 3 To Critical Strikes . | . . . . . . . . Average Slot Usage (%) 85 | . 96 79 77 85 89 83 90 Engine 3 | . 14 4 4 14 . . . Core 4 | . . . . . 8 7 8 Leg 22 | . 28 21 28 28 18 23 20 Device 15 | . 10 11 14 14 17 15 16 Storage 10 | . 14 14 14 14 9 7 6 Processor 4 | . . . . . 9 6 6 Protection 4 | . . . . . 8 7 8 Ballistic Gun 17 | . 28 28 15 14 17 9 12 Ballistic Cannon 1 | . . . . . . 4 5 Naked Turns . | . . . . . . . . Heaviest Build 73 | 11 17 17 34 34 50 54 73 Greatest Support 45 | 20 20 20 20 20 20 30 45 Greatest Overweight (x) 3 | 3 . 1 1 1 2 1 3 Average Overweight (x) 1 | . . . . 1 1 1 1 Largest Inventory Capacity 15 | 8 10 10 15 15 15 15 15 Average Capacity 13 | 6 9 10 11 15 15 15 15 Most Carried 15 | 3 7 10 10 15 15 15 15 Average Carried 11 | 1 4 7 8 10 14 14 14 Final Capacity 15 | 8 10 10 15 15 15 15 15 Final Carried 15 | 2 6 10 8 15 15 15 13 Class Distribution -------------------- 43% | Skirmisher 34% | Mutant 21% | Scavenger-Skirmisher Dominant Class ---------------- Mutant | -10/Materials Mutant | -10/Mines Mutant | -10/Exiles Skirmisher | -9/Mines Skirmisher | -8/Materials Scavenger-Skirmisher | -7/Factory Scavenger-Skirmisher | -6/Factory Resources | -11 -10 -10 -10 -9 -8 -7 -6 ----------- Run | Yrd Mat Min Exi Min Mat Fac Fac Matter Collected 1083 | 176 . 163 . 50 213 . 481 Remotely . | . . . . . . . . Salvage Created 2307 | . . 58 . 196 1225 . 828 Parts 128 | . . 2 . 12 69 . 45 Haulers Intercepted . | . . . . . . . . Recyclers Shooed . | . . . . . . . . Parts Field Recycled . | . . . . . . . . Retrieved Matter . | . . . . . . . . Parts Self-Destructed . | . . . . . . . . Prevented . | . . . . . . . . Kills | -11 -10 -10 -10 -9 -8 -7 -6 ------- Run | Yrd Mat Min Exi Min Mat Fac Fac Combat Hostiles Destroyed 48 | . . 4 . 7 20 . 17 Guns 41 | . . 4 . 7 20 . 10 Cannons 6 | . . . . . . . 6 AOE 1 | . . . . . . . 1 Classes Destroyed 13 | . . 3 . 2 6 . 2 Builder 1 | . . . . . 1 . . Tunneler 1 | . . . . . 1 . . Recycler 1 | . . . . . 1 . . Watcher 3 | . . . . . 2 . 1 Swarmer 5 | . . . . 4 . . 1 Grunt 23 | . . 1 . 2 13 . 7 Brawler 1 | . . . . 1 . . . Duelist 2 | . . . . . 2 . . Sentry 10 | . . . . . 5 . 5 Demolisher 1 | . . 1 . . . . . Hunter 3 | . . . . . . . 3 Programmer 1 | . . . . . . . 1 Assembled 2 | . . 2 . . . . . Best Kill Streak 6 | . . 2 . 4 5 . 6 Combat Bots Only 6 | . . 2 . 4 3 . 6 Max Kills in Single Turn 2 | . . 1 . 2 2 . 1 Gunslinging . | . . . . . . . . Exploded 1 | . . . . . . . 1 Melee . | . . . . . . . . Uniques/NPCs Destroyed . | . . . . . . . . Combat | -11 -10 -10 -10 -9 -8 -7 -6 -------- Run | Yrd Mat Min Exi Min Mat Fac Fac Hostile Shots Fired 252 | . 1 31 . 9 23 . 188 Missed 84 | . 1 9 . 2 8 . 64 Damage Taken 2561 | . . 499 . 61 230 . 1771 Core 303 | . . 114 . . 35 . 154 Absorbed by Shields 31 | . . . . . 31 . . Regen/Repaired (Parts) 155 | . . . . . . . 155 Core Remaining (%) 86 | 100 . . . 54 93 100 . Volleys Fired 69 | . . 14 . . 20 . 35 Largest 3 | . . 2 . . 1 . 3 Hottest 141 | . . 40 . . 25 . 141 Shots Fired 248 | . . 28 . 10 85 . 125 Gun 213 | . . 28 . 10 85 . 90 Cannon 35 | . . . . . . . 35 Launcher . | . . . . . . . . Special . | . . . . . . . . Kinetic 246 | . . 28 . 10 85 . 123 Thermal 2 | . . . . . . . 2 Explosive . | . . . . . . . . Electromagnetic . | . . . . . . . . Robot Hit Streak 12 | . . 11 . 4 12 . 7 Robot Miss Streak 6 | . . 2 . 2 2 . 6 Penetration Max . | . . . . . . . . Secondary Targets 1 | . . 1 . . . . . Max Gunslinging Chain 1 | . . 1 . . . . . Autonomous 131 | . . . . 10 65 . 56 Shots Hit Robots 179 | . . 19 . 7 70 . 83 Core Hits 92 | . . 11 . 7 35 . 39 Critical Kills . | . . . . . . . . Critical Parts Destroyed 2 | . . . . . 2 . . Critical Strikes 3 | . . 1 . . 2 . . Destroy 3 | . . 1 . . 2 . . Melee Attacks . | . . . . . . . . Impact . | . . . . . . . . Slashing . | . . . . . . . . Piercing . | . . . . . . . . Sneak Attacks . | . . . . . . . . Combat Hostiles . | . . . . . . . . Follow-up Attacks . | . . . . . . . . Damage Inflicted 4940 | . . 212 . 243 2127 . 2358 Guns 4174 | . . 199 . 243 2056 . 1676 Cannons 621 | . . . . . . . 621 Explosions 132 | . . . . . 71 . 61 Melee . | . . . . . . . . Ramming 13 | . . 13 . . . . . Kinetic 4759 | . . 199 . 243 2056 . 2261 Thermal 97 | . . . . . . . 97 Explosive 71 | . . . . . 71 . . Electromagnetic . | . . . . . . . . Impact . | . . . . . . . . Slashing . | . . . . . . . . Piercing . | . . . . . . . . Highest Corruption 1 | . . . . . 1 . 1 Average Corruption 1 | . . . . . 1 . 1 Corruption Purged . | . . . . . . . . Corruption Blocked . | . . . . . . . . Effects 9 | . . . . . 8 . 1 Message Errors 2 | . . . . . 2 . . Matter Fused 4 | . . . . . 3 . 1 Energy Discharges 1 | . . . . . 1 . . Data Loss (minor) 1 | . . . . . 1 . . Data Loss (major) 1 | . . . . . 1 . . Overload Shots . | . . . . . . . . Overflow Damage 78 | . . . . . 18 . 60 Projectiles 60 | . . . . . . . 60 Explosions 18 | . . . . . 18 . . Melee . | . . . . . . . . Knockbacks 5 | . . . . . . . 5 Impact . | . . . . . . . . Kinetic 5 | . . . . . . . 5 Secondary . | . . . . . . . . Self-Inflicted Damage . | . . . . . . . . Shots . | . . . . . . . . Rammed . | . . . . . . . . Targets Rammed 4 | . . 4 . . . . . Kicked 4 | . . 4 . . . . . Crushed . | . . . . . . . . Highest Temperature 328 | . . 40 . . 2 . 328 Average Temperature 97 | . . 14 . . 2 . 104 Received Heat Transfer 732 | . . 192 . 12 81 . 447 Effects 1 | . . . . . . . 1 Energy Bleed 1 | . . . . . . . 1 Siege Activations . | . . . . . . . . Robots Corrupted . | . . . . . . . . Combat Hostiles . | . . . . . . . . Parts Fried . | . . . . . . . . Impact Corruptions . | . . . . . . . . Robots Melted . | . . . . . . . . Combat Hostiles . | . . . . . . . . Parts Melted . | . . . . . . . . Heat Transferred 124 | . . . . . . . 124 Parts Sabotaged . | . . . . . . . . Parts Stolen . | . . . . . . . . Parts Stripped . | . . . . . . . . Power Chain Reactions . | . . . . . . . . Alert | -11 -10 -10 -10 -9 -8 -7 -6 ------- Run | Yrd Mat Min Exi Min Mat Fac Fac Peak Influence 503 | . . 20 . 93 276 87 503 Initial 87 | . . . . . 35 87 42 Average 102 | . . 6 . 47 153 87 142 Maximum Alert Level 2 | . . . . . 1 . 2 Low Security (%) 88 | 100 100 100 . 100 86 100 72 Level 1 9 | . . . . . 13 . 17 Level 2 2 | . . . . . . . 10 Level 3 . | . . . . . . . . Level 4 . | . . . . . . . . Level 5 . | . . . . . . . . High Security . | . . . . . . . . Max Security . | . . . . . . . . Squads Dispatched 11 | . . . . . 2 . 9 Investigation 2 | . . . . . . . 2 Extermination 1 | . . . . . . . 1 Reinforcement 3 | . . . . . 2 . 1 Assault 2 | . . . . . . . 2 Garrison 3 | . . . . . . . 3 Intercept . | . . . . . . . . Searches Triggered . | . . . . . . . . Construction Impeded 1 | . . . . . . . 1 Haulers Reinforced . | . . . . . . . . Active Scanning Responses . | . . . . . . . . Cargo Convoy Interrupts . | . . . . . . . . Stealth | -11 -10 -10 -10 -9 -8 -7 -6 --------- Run | Yrd Mat Min Exi Min Mat Fac Fac Distress Signals 3 | . . . . . 2 . 1 Communications Jammed . | . . . . . . . . Distress Signals . | . . . . . . . . Times Spotted 80 | . 2 11 . 7 29 . 31 Peak Tracking Total 8 | . 2 7 . 2 4 . 8 Tactical Retreats 3 | . . 2 . . . . 1 Traps | -11 -10 -10 -10 -9 -8 -7 -6 ------- Run | Yrd Mat Min Exi Min Mat Fac Fac Traps Triggered 6 | . . . . . 2 . 4 Indirectly . | . . . . . . . . Trap Hack Attempts . | . . . . . . . . Triggered . | . . . . . . . . Disarmed . | . . . . . . . . Reprogrammed . | . . . . . . . . Reused . | . . . . . . . . Traps Extracted . | . . . . . . . . Installed . | . . . . . . . . Triggered . | . . . . . . . . Machines | -11 -10 -10 -10 -9 -8 -7 -6 ---------- Run | Yrd Mat Min Exi Min Mat Fac Fac Machines Disabled 5 | . . . . . 2 . 3 Max in Single Turn 2 | . . . . . 1 . 2 Garrison Access 1 | . . . . . . . 1 Machines Repaired . | . . . . . . . . Machines Dismantled . | . . . . . . . . Machines Sabotaged . | . . . . . . . . Overloaded Fab Kills . | . . . . . . . . Hacking | -11 -10 -10 -10 -9 -8 -7 -6 --------- Run | Yrd Mat Min Exi Min Mat Fac Fac Machines Accessed 17 | . 1 . 1 . 7 1 7 Terminals 8 | . 1 . . . 4 . 3 Fabricators . | . . . . . . . . Repair Stations 1 | . . . . . . . 1 Recycling Units 4 | . . . . . 2 1 1 Scanalyzers 1 | . . . . . 1 . . Garrison Access 2 | . . . . . . . 2 Total Hacks 37 | . 1 . 1 . 18 1 16 Successful 16 | . . . 1 . 10 . 5 Failed 21 | . 1 . . . 8 1 11 Catastrophic 2 | . . . . . 1 . 1 Database Lockouts . | . . . . . . . . Manual 22 | . 1 . 1 . 13 . 7 Terminals 18 | . 1 . . . 12 . 5 Fabricators . | . . . . . . . . Repair Stations 3 | . . . . . . . 3 Recycling Units 8 | . . . . . 3 1 4 Scanalyzers 3 | . . . . . 3 . . Garrison Access 4 | . . . . . . . 4 Terminal Hacks 3 | . . . 1 . 1 . 1 Record 1 | . . . . . . . 1 Security Status 1 | . . . . . 1 . . Derelict Proto ID Bank 1 | . . . 1 . . . . Fabricator Hacks . | . . . . . . . . Repair Station Hacks 2 | . . . . . . . 2 Scan Component 1 | . . . . . . . 1 Repair 1 | . . . . . . . 1 Recycling Unit Hacks 1 | . . . . . . . 1 Retrieve Components 1 | . . . . . . . 1 Scanalyzer 2 | . . . . . 2 . . Insert Component 1 | . . . . . 1 . . Analyze 1 | . . . . . 1 . . Garrison Access Hacks . | . . . . . . . . Unauthorized Hacks 8 | . . . . . 7 . 1 Terminals 5 | . . . . . 5 . . Assimilate 2 | . . . . . 2 . . Botnet 3 | . . . . . 3 . . Fabricators . | . . . . . . . . Repair Stations . | . . . . . . . . Recycling Units 2 | . . . . . 2 . . Reject 1 | . . . . . 1 . . Mask 1 | . . . . . 1 . . Scanalyzers . | . . . . . . . . Garrison Access 1 | . . . . . . . 1 Jam 1 | . . . . . . . 1 Data Cores Recovered . | . . . . . . . . Used . | . . . . . . . . Hacking Detections 14 | . 1 . . . 6 . 7 Full Trace Events . | . . . . . . . . Feedback Events . | . . . . . . . . Feedback Blocked . | . . . . . . . . Robot Schematics Acquired . | . . . . . . . . Robots Built . | . . . . . . . . Authchips . | . . . . . . . . Time . | . . . . . . . . Total Robot Build Rating . | . . . . . . . . Part Schematics Acquired 1 | . . . . . 1 . . Parts Built . | . . . . . . . . Authchips . | . . . . . . . . Time . | . . . . . . . . Total Part Build Rating . | . . . . . . . . Parts Repaired 1 | . . . . . . . 1 Time 19 | . . . . . . . 19 Parts Recycled . | . . . . . . . . Recycled Matter . | . . . . . . . . Retrieved Matter . | . . . . . . . . Retrieved Components 2 | . . . . . . . 2 Parts Scanalyzed 1 | . . . . . 1 . . Part Schematics Acquired 1 | . . . . . 1 . . Parts Damaged . | . . . . . . . . Bothacking | -11 -10 -10 -10 -9 -8 -7 -6 ------------ Run | Yrd Mat Min Exi Min Mat Fac Fac Used RIF Installer . | . . . . . . . . Robots Hacked . | . . . . . . . . Non-combat . | . . . . . . . . Combat . | . . . . . . . . Robot Hacks Applied . | . . . . . . . . Relay Couplers Released . | . . . . . . . . Fabnet Peak Effective % . | . . . . . . . . Robots Rewired . | . . . . . . . . Allies Hacked . | . . . . . . . . Hacks Repelled . | . . . . . . . . Allies | -11 -10 -10 -10 -9 -8 -7 -6 -------- Run | Yrd Mat Min Exi Min Mat Fac Fac Total Allies 1 | . . 1 . . . . . Largest Group 1 | . . 1 1 . . . . Highest-Rated Group 31 | . . 31 31 . . . . Highest-Rated Ally 31 | . . 31 31 . . . . Total Orders . | . . . . . . . . Ally Attacks . | . . . . . . . . Total Damage . | . . . . . . . . Kills . | . . . . . . . . Allies Corrupted . | . . . . . . . . Allies Melted . | . . . . . . . . Intel | -11 -10 -10 -10 -9 -8 -7 -6 ------- Run | Yrd Mat Min Exi Min Mat Fac Fac Robot Analysis Total . | . . . . . . . . Derelict Logs Recovered 2 | . . 1 . 1 . . . Drone Launches . | . . . . . . . . Drone Recoveries . | . . . . . . . . Exploration | -11 -10 -10 -10 -9 -8 -7 -6 ------------- Run | Yrd Mat Min Exi Min Mat Fac Fac Turns Passed 5850 | 52 93 850 1059 647 1762 235 1152 Spaces Moved 2689 | 36 71 523 595 265 578 118 503 Core 18 | 18 . . . . . . . Treads . | . . . . . . . . Legs 2670 | 18 71 523 595 265 578 118 502 Wheels 1 | . . . . . . . 1 Hover . | . . . . . . . . Flight . | . . . . . . . . Fastest Speed 50 | 50 120 120 120 190 190 190 145 Average Speed 190 | 107 120 147 175 190 259 190 189 Slowest Speed 260 | 200 120 190 190 190 260 190 190 Overloaded Moves . | . . . . . . . . Propulsion Burnouts . | . . . . . . . . Robots Hopped . | . . . . . . . . Cave-ins Triggered . | . . . . . . . . Exploration Rate (%) 42 | 4 21 80 91 68 58 2 17 Regions Visited 7 Branch Regions 3 Pre-discovered Areas 2 | . . . . 2 . . . Known Exits Taken . | . . . . . . . . Unknown Exits Taken 7 | 1 1 1 1 1 1 1 . Scrap Searched 4 | . . 2 . 2 . . . Spaces Dug . | . . . . . . . . Terrain Destroyed 107 | . . . . 8 38 . 61 Melee . | . . . . . . . . Projectile 76 | . . . . 8 35 . 33 AOE 31 | . . . . . 3 . 28 Terrain Rammed . | . . . . . . . . Walls Destroyed . | . . . . . . . . Machines Disabled . | . . . . . . . . Actions | -11 -10 -10 -10 -9 -8 -7 -6 --------- Run | Yrd Mat Min Exi Min Mat Fac Fac Total 3316 | 49 79 578 611 409 830 130 630 Wait 382 | . . 23 . 138 181 . 40 Move 2682 | 35 70 522 594 264 577 117 503 Hop . | . . . . . . . . Pick Up 79 | 8 6 9 4 7 22 5 18 Fast Attach . | . . . . . . . . Attach 39 | 6 1 3 3 . 7 2 17 Detach 2 | . . . . . . . 2 Swap 20 | . 1 . 2 . 7 2 8 Drop 36 | . 1 3 6 . 16 4 6 Fire 69 | . . 14 . . 20 . 35 Melee . | . . . . . . . . Ram . | . . . . . . . . Kick 4 | . . 4 . . . . . Crush . | . . . . . . . . Escape Stasis . | . . . . . . . . Rewire 3 | . . . 2 . . . 1 Trap . | . . . . . . . . Miscellaneous . | . . . . . . . . Route ------- -11/Scrapyard -10/Materials -10/Mines (discovered 3 exits: [*Mat x2] / *Exi) -10/Exiles (discovered 2 exits: [*Min x2]) -9/Mines -8/Materials -7/Factory -6/Factory History --------- Turn | Location | Event 25 | -11/Scrapyard | Discovered new exit (range 15) 53 | -11/Scrapyard | Entered Materials 139 | -10/Materials | Discovered new exit (range 4) 146 | -10/Materials | Entered Mines 181 | -10/Mines | Learned Materials garrison access intel 203 | -10/Mines | Assembled infested the area 306 | -10/Mines | Build established: Mutant 425 | -10/Mines | Lost 3 parts (1p1n1u) 592 | -10/Mines | Received a Rocket Launcher from a helpful Derelict 604 | -10/Mines | Discovered new exit (range 7) 963 | -10/Mines | Received a Mining Laser from a helpful Derelict 966 | -10/Mines | Discovered new exit (range 10) 990 | -10/Mines | Deemed a non-threat by the Exiles lab entrance 991 | -10/Mines | Discovered new exit (range 5) 996 | -10/Mines | Entered Exiles 996 | -10/Exiles | Accompanied by 1 ally 1026 | -10/Exiles | Met 8R-AWN 1047 | -10/Exiles | Met EX-HEX 1083 | -10/Exiles | Met EX-BIN 1100 | -10/Exiles | Aligned with FarCom system 1101 | -10/Exiles | Given EX-Vault access code 1130 | -10/Exiles | Opened EX-Vault 1139 | -10/Exiles | Found Prototype Device 1140 | -10/Exiles | Identified PSU Rigger 1147 | -10/Exiles | Found Prototype Ballistic Gun 1149 | -10/Exiles | Identified AWS/Gauss 1248 | -10/Exiles | Warned to stay clear of 0b10 Research branches 1299 | -10/Exiles | Met EX-DEC 1425 | -10/Exiles | Visited The Gauntlet 1797 | -10/Exiles | Discovered new exit (range 14) 2021 | -10/Exiles | Discovered new exit (range 15) 2055 | -10/Exiles | Left Exiles lab with AWS/Gauss 2055 | -10/Exiles | Entered Mines 2347 | -9/Mines | Build established: Skirmisher 2356 | -9/Mines | Learned location of Storage (-9) 2664 | -9/Mines | Discovered new exit (range 8) 2702 | -9/Mines | Entered Materials 2702 | -8/Materials | Evolved 4 slots: Utility x3, Weapon x1 2703 | -8/Materials | Loaded intel: 1 garrison access location 3893 | -8/Materials | Discovered new exit (range 15) 4464 | -8/Materials | Entered Factory 4464 | -7/Factory | Evolved 2 slots: Power x1, Propulsion x1 4678 | -7/Factory | Discovered new exit (range 10) 4699 | -7/Factory | Entered another Factory area 4699 | -6/Factory | Evolved 2 slots: Utility x1, Weapon x1 4790 | -6/Factory | Build established: Scavenger-Skirmisher 4942 | -6/Factory | Garrison activated, responded to threat 5396 | -6/Factory | Lost 3 parts (2u1w) 5587 | -6/Factory | Repaired Hrd. Medium Armor Plating 5749 | -6/Factory | First assault squad dispatched 5851 | -6/Factory | Self-destructed Last Messages --------------- 05808_ U-05 Engineer builds a Wall. 05809_ K-01 Serf cleans the Nuclear Reactor. 05812_ Y-54 Guardian destroyed. 05813_ U-05 Engineer builds a Wall. 05819_ K-01 Serf cleans the Nuclear Reactor. 05822_ C-30 ARC bursts open, deploying its payload. 05822_ G-67 Veteran unfolds itself. 05822_ G-50 Soldier unfolds itself. 05822_ M-28 Smith unfolds itself. 05823_ Nuclear Core destroyed. 05826_ C-30 ARC bursts open, deploying its payload. 05826_ G-67 Veteran unfolds itself. 05826_ L-41 Fighter unfolds itself. 05826_ G-50 Soldier unfolds itself. 05826_ M-28 Smith unfolds itself. 05833_ K-01 Serf collects debris. 05841_ Lgt. Antimatter Reactor destroyed. 05841_ Critical hit (Burn: +37). Map ----- +----------------------------------------------------+ | ?????????###? ############### | | ????????##?# ### # ! | | ???????????# ? ### # ! | | ???????##?## ### # | | ??????################+#### " | | ???? # " ""T"" | | ???? # """" """" # """"" | | ???? + """" """" ############ | | ??? ? % # """" """" ###### ? ? | | ????? % # """" """" ##?#?# ? | | ?? #### #######/####+#### """" """" ###### ???? | | ???###?## #######% [% # """" """" #?#### ?"?? | | ???##??#? ####### = # "["""" ###### "?"? | | ?????##?#??######! * # =[ " ##? ?"""" | | ?? ?###?#??##??## ################## ??"? | | ???#??? ? ## """ """ #########?###?##?#? ???? | | ??? # ?? ? ## """ """ #########?#?########?#?? | | ??? ? ? ## """ """ ######################?# | | ?? ??""" ""? ## #########?###?#######??? | | ?? ?+ """ "?" ## """m""" ###?########?#######?#?? | | ???? ???"" ??" ## """m""" ###############?##? ? ? | | ???? ??? ?? ## """ """g######?####?####### ??? | | ?? #? ? ## g g ############?# ?##????? | | ????????######?## """l"""g#######?#?####?? ??????? | | ?? ?? ??# """ """ ############## ?#? ???? | | ??????"""""?" ### """g"""@##########?#?# ????????? | | ????+ ??""??" ?## g g #########?#?#?? ??????? | | ??????"""??"? #################?#####?#? ????????? | | ???????"??""" #???###?#####?##?#??#?#?#??????????? | | ???????? ? ?#?####??#???#?? ?? ??????????????? | | ???????????? ?#??#????#???### ?? ? ??????????????? | | ?????????? ???###??##??#??#????? ??????????????? | | ?????????##???##?#???##????#???? ????????????????? | | ??????????#??##??????#?#?#??#?#??????????????????? | | ?????????##?#????##?##?????#????????? ???????????? | | ???????????#??##????#???#?##??#??##??? ??????????? | | ??????????#?#?#??#?#?##?#????????#???????????????? | | ?????????? ??????#???#?##????????????????????????? | | ?????????????? ?#???##??????????#????????????????? | | ????????????????#????#??#????????????????????????? | | ???????????????????????#??????? ?????????????????? | | ??????????????????#???#??????????????????????????? | | ???????????????????????#?????????????????????????? | | ?????????????????????????????????????????????????? | | ?????????????????????????????????????????????????? | | ?????????????????????????????????????????????????? | | ?????????????????????????????????????????????????? | | ?????????????????????????????????????????????????? | | ?????????????????????????????????????????????????? | | ?????????????????????????????????????????????????? | +----------------------------------------------------+ Best States ------------- Heat Dissipation 37 Energy Generation 30 Energy Capacity 310 Matter Stores 300 Matter Capacity 300 Sight Range 16 Robot Scan Range 15 Terrain Scan Range 16 Terrain Scan Density 210 Armor Coverage 375 Evasion (%) 55 Item Schematics ----------------- Imp. Signal Interpreter | -8/Materials | Scanalyzed Robot Schematics ------------------ None Fabricated ------------ Nothing Alien Tech Used ----------------- None Achievements -------------- None Challenges ------------ None Game ------ Seed ExperimentalSapperGreatsword Manual? 0 Play Time 00:31:38 Cumulative 23.4 hours Start 2024.04.02 @ 21:49:40 End 2024.04.02 @ 22:21:12 Sessions 1 Manual Loads 0 Difficulty Rogue Special Mode None Game No. 65 Rogue 63 Adventurer 2 Explorer 0 Win Type - Total 0 Types 0/0/0/0/0/0/0/0/0 Lore% 21 Gallery% 36 Achievement% 27 Wizard Run 0 Options --------- Layout 1 ASCII 0 Keyboard 0 Movement Arrows Keybinds 0 Fullscreen 2 Font 24/Smallcaps Map View 50x35 Zoom Use 0% Tactical HUD 1 Map Filters NONE Filters NONE Steam 1 RUN: e91d6735-aade-42a1-8eec-c19a6d0841a6